bitfinex/quotes_ETHUSD_20260302
["timestamp","ask_amount","ask_price","bid_price","bid_amount"]
[1772476360962,3.11944194,2035.1,2034.3,1.22992395]
[1772476363084,1.22841375,2035.2,2034.5,0.001]
[1772476363291,1.89,2035.5,2034.5,6.12742899]
[1772476363481,1.89,2035.5,2034.5,0.001]
[1772476363482,0.002,2035.5,2034.5,0.001]
[1772476363658,0.002,2035.5,2034.6,6.12642899]
[1772476364099,1e-08,2035.7,2034.8,6.12642899]
[1772476364774,1e-08,2035.7,2035.0,6.12642899]
[1772476365192,0.002,2036.1,2035.1,6.12642899]
[1772476365988,0.002,2036.1,2035.3,6.12642899]
[1772476367260,0.002,2036.1,2035.4,1.2282598]
[1772476367457,0.002,2036.1,2035.4,7.61550484]
[1772476370291,0.002,2036.1,2035.6,6.38724504]
[1772476370593,0.002,2036.1,2035.4,1.2282598]
[1772476370982,1.60315813,2036.5,2035.4,1.2282598]
[1772476371210,0.37551455,2036.5,2035.8,6.38724504]
[1772476371384,0.37551455,2036.5,2035.9,7.61520319]
[1772476371576,1.22948023,2036.7,2035.9,7.61520319]
[1772476373194,0.002,2036.7,2035.9,7.61520319]
[1772476373492,0.002,2036.7,2036.1,6.38724504]
[1772476373880,0.002,2036.7,2035.9,1.22795815]
[1772476374080,0.002,2036.7,2035.9,7.61520319]
[1772476375282,0.002,2036.7,2036.2,6.38724504]
[1772476375628,4.91073157,2037.2,2036.2,6.38724504]
[1772476375629,0.002,2037.2,2037.0,6.38724504]
[1772476375784,0.37028805,2038.2,2037.5,2.41308991]
[1772476376119,1.32002419,2038.9,2037.8,8.80033495]
[1772476376268,2.41308991,2038.5,2037.0,2.41308991]
[1772476376468,6.40530084,2038.3,2037.0,6.38724504]
[1772476376987,1.875,2038.4,2037.4,6.38724504]
[1772476377392,3.10148958,2038.4,2037.5,1.22699386]
[1772476377573,0.0938706,2038.9,2038.2,11.21342486]
[1772476377777,1.22588049,2039.4,2038.6,2.41308991]
[1772476377989,1.22588049,2039.4,2038.3,6.38724504]
[1772476378190,1.22588049,2039.4,2038.5,2.41308991]
[1772476378392,2.41308991,2039.3,2038.1,2.52930376]
[1772476378570,6.40530084,2039.2,2037.6,8.80033495]
[1772476378772,6.40530084,2039.0,2037.6,8.80033495]
[1772476379101,1.878,2038.9,2037.6,8.80033495]
[1772476379478,1.22621149,2038.8,2037.7,1.22687343]
[1772476380079,6.40530084,2038.7,2037.5,1.22698868]
[1772476380672,3.6393014,2038.8,2037.2,7.61438526]
[1772476380673,8.81839075,2038.5,2037.2,7.61438526]
[1772476380897,6.40530084,2038.5,2037.2,7.61438526]
[1772476381302,1.878,2038.4,2037.2,7.61438526]
[1772476381511,1.22651228,2038.3,2037.2,7.61438526]
[1772476381799,6.40530084,2038.2,2037.2,1.22714022]
[1772476382102,6.40530084,2038.2,2037.1,1.2272027]
[1772476382294,6.40530084,2038.2,2036.8,6.38724504]
[1772476382503,6.40530084,2038.2,2036.9,1.22735529]
[1772476382798,6.40530084,2038.2,2036.9,3.6404452]
[1772476383371,1.22681322,2037.8,2036.7,1.22741602]
[1772476383675,1.879,2037.7,2036.7,1.22741602]
[1772476384278,4.29208991,2037.7,2036.6,3.75680035]
[1772476384475,8.28430084,2037.7,2036.6,1.22749659]
[1772476385596,8.28430084,2037.7,2036.5,7.32346941]
[1772476385597,1.22693364,2037.6,2036.5,7.61479765]
[1772476385901,3.10593364,2037.6,2036.5,7.61479765]
[1772476387092,9.51123448,2037.6,2036.5,7.61479765]
[1772476387277,6.40530084,2037.5,2036.3,4.91072244]
[1772476387602,4.90773458,2037.8,2036.3,4.91072244]
[1772476387603,1.22681322,2037.8,2036.6,8.80033495]
[1772476387801,1.882,2037.4,2036.6,6.38724504]
[1772476388183,1.882,2037.4,2036.7,0.001]
[1772476388782,1.22681322,2037.8,2036.7,0.001]
[1772476388976,1.882,2037.4,2036.7,0.001]
[1772476389491,1.882,2037.4,2036.7,6.38824504]
[1772476389685,1.882,2037.4,2036.8,1.22741555]
[1772476390100,3.10905624,2037.4,2036.8,1.22741555]
[1772476391191,3.10905624,2037.4,2036.8,7.61466059]
[1772476391396,1.882,2037.4,2036.8,7.61466059]
[1772476391702,3.10905918,2037.4,2036.8,7.61466059]
[1772476391905,7.63175295,2038.4,2037.0,8.80033495]
[1772476392111,8.28430084,2038.3,2037.1,6.38724504]
[1772476392685,1.879,2038.3,2037.6,2.41308991]
[1772476392896,1.879,2038.3,2037.4,6.38724504]
[1772476393480,7.63174123,2038.5,2037.4,6.38724504]
[1772476393684,1.879,2038.2,2037.4,6.38724504]
[1772476394101,1.879,2038.2,2037.5,7.6142389]
[1772476394307,1.88,2038.4,2037.6,8.80033495]
[1772476395300,1.22644039,2038.5,2037.6,8.80033495]
[1772476395502,4.90708813,2038.7,2037.6,8.80033495]
[1772476395503,1.22832068,2038.7,2037.7,6.38724504]
[1772476396512,7.08368528,2038.7,2037.8,1.22681322]
[1772476396698,7.08368528,2038.7,2037.7,7.6140803]
[1772476396902,7.08368528,2038.7,2037.5,4.90785958]
[1772476397090,5.8553646,2038.6,2037.5,1.22699386]
[1772476397404,5.8553646,2038.6,2037.3,0.7]
[1772476397405,5.8553646,2038.3,2037.3,1.2270769]
[1772476397587,1.876,2038.2,2037.3,1.2270769]
[1772476397788,5.8553646,2038.3,2037.3,1.2270769]
[1772476397997,1.877,2038.2,2037.3,1.2270769]
[1772476398799,7.69591614,2038.1,2036.8,13.17499835]
[1772476399510,7.69591614,2038.1,2036.8,1.22741555]
[1772476401011,7.69591614,2038.1,2036.7,0.001]
[1772476401205,6.4692835,2037.8,2036.7,0.001]
[1772476401515,8.3452835,2037.7,2036.7,0.001]
[1772476401721,8.3452835,2037.7,2036.9,0.001]
[1772476402097,8.3452835,2037.7,2036.7,0.001]
[1772476402098,6.4692835,2037.5,2036.7,0.001]
[1772476402299,2.41308991,2037.6,2036.5,0.001]
[1772476402300,8.88237341,2037.0,2036.5,0.001]
[1772476402505,1.876,2036.9,2036.5,0.001]
[1772476402815,1.22747581,2036.7,2036.5,0.001]
[1772476403715,1.22747581,2036.7,2036.2,0.001]
[1772476406624,3.10647581,2036.7,2036.2,0.001]
[1772476407522,1.879,2036.7,2036.2,0.001]
[1772476408028,6.4692835,2037.4,2036.2,5.85325071]
[1772476408195,6.4692835,2037.8,2036.2,5.85325071]
[1772476408521,1.878,2037.7,2036.3,5.85225071]
[1772476409524,1.22693364,2037.6,2036.5,5.85225071]
[1772476410526,1.877,2037.5,2036.5,5.85225071]
[1772476412916,1.22705408,2037.4,2036.8,1.22741555]
[1772476413120,1.874,2038.1,2037.0,5.85225071]
[1772476414816,3.10063107,2038.2,2037.1,1.22723479]
[1772476415142,3.10063107,2038.2,2036.8,1.22736866]
[1772476415143,6.4692835,2038.0,2036.8,1.22736866]
[1772476415314,6.4692835,2037.8,2036.8,1.22736866]
[1772476415821,6.4692835,2037.8,2036.7,1.92846661]
[1772476416030,6.4692835,2037.8,2036.7,0.701]
[1772476416219,6.4692835,2037.8,2036.7,1.92846858]
[1772476417024,6.4692835,2037.6,2036.7,1.92846858]
[1772476417818,6.4692835,2037.6,2036.7,0.701]
[1772476418020,6.4692835,2037.6,2036.7,1.92847018]
[1772476418836,1.874,2037.5,2036.7,1.92847018]
[1772476419033,1.874,2037.8,2036.8,5.85225071]
[1772476419633,8.3432835,2037.8,2036.7,1.92847018]
[1772476420249,6.4692835,2037.7,2036.7,1.92847018]
[1772476421156,1.22693364,2037.6,2036.7,1.92847018]
[1772476422771,7.69621714,2037.6,2036.7,0.45293377]
[1772476423049,7.69639781,2037.3,2036.7,0.45293377]
[1772476423217,7.69639781,2037.3,2036.5,0.001]
[1772476423218,1.874,2037.2,2036.5,0.001]
[1772476424123,7.69639781,2037.3,2036.5,0.001]
[1772476424124,1.874,2037.1,2036.5,0.001]
[1772476425047,1.22729504,2037.0,2036.5,0.001]
[1772476425550,6.4692835,2036.8,2036.2,0.001]
[1772476425753,1.22729504,2037.0,2036.2,0.001]
[1772476425944,1.876,2036.9,2036.7,0.001]
[1772476426146,1.876,2036.9,2036.2,0.001]
[1772476426346,7.69657854,2037.0,2036.5,0.001]
[1772476426533,1.879,2036.9,2036.5,0.001]
[1772476427131,1.22741555,2036.8,2036.5,0.001]
[1772476428835,7.48230111,2036.8,2036.2,0.001]
[1772476430251,1.22741555,2036.8,2036.2,0.001]
[1772476430550,1.882,2036.7,2036.2,0.001]
[1772476431139,1.22753608,2036.6,2036.2,0.001]
[1772476432631,1.882,2036.5,2036.2,0.001]
[1772476432827,4.90967812,2036.8,2036.2,0.001]
[1772476432828,1.883,2036.8,2036.2,0.001]
[1772476433133,1.883,2036.8,2036.2,5.90007961]
[1772476433350,1.883,2036.8,2036.3,7.12679654]
[1772476433549,3.11041875,2036.8,2036.3,7.12679654]
[1772476434259,3.11041875,2036.8,2036.2,0.001]
[1772476434631,9.36530431,2036.8,2036.2,0.001]
[1772476435570,1.884,2036.7,2036.2,0.001]
[1772476437175,1.884,2036.7,2036.1,5.89907961]
[1772476437176,6.25488556,2036.3,2035.0,3.75779853]
[1772476437379,10.8572011,2036.0,2034.9,7.12763271]
[1772476437672,7.48278339,2036.0,2034.9,7.12763178]
[1772476437845,7.48278339,2036.0,2034.9,5.89907961]
[1772476438047,1.888,2035.9,2035.1,5.90007961]
[1772476438273,1.888,2035.8,2035.1,5.90007961]
[1772476438473,1.22789783,2036.0,2035.2,5.89907961]
[1772476438649,3.11589783,2036.0,2035.2,5.89907961]
[1772476439358,3.11589783,2036.0,2035.3,1.22832014]
[1772476439554,3.11589783,2036.0,2035.9,0.001]
[1772476439555,1.888,2036.0,2035.9,0.001]
[1772476439758,1.22775591,2036.3,2035.9,0.001]
[1772476442059,3.11569397,2036.4,2035.9,0.001]
[1772476444554,1.888,2036.3,2035.9,0.001]
[1772476446258,1.22777723,2036.2,2035.9,0.001]
[1772476448372,1.22777723,2036.2,2035.7,5.89504315]
[1772476448655,6.25488556,2035.7,2034.5,5.90007961]
[1772476448886,6.25488556,2035.5,2034.5,5.90007961]
[1772476449957,6.25488556,2035.5,2034.5,0.001]
[1772476450779,7.48314536,2035.4,2034.5,0.001]
[1772476451093,7.48314536,2035.4,2034.7,0.001]
[1772476452188,6.25488556,2035.3,2034.7,0.001]
[1772476452379,1.892,2035.2,2034.7,0.001]
[1772476453969,1.22844086,2035.1,2034.7,0.001]
[1772476454692,7.48332642,2035.1,2034.7,0.001]
[1772476454894,7.48332642,2035.1,2034.5,0.001]
[1772476455117,4.9130392,2035.5,2034.5,5.90007961]
[1772476455392,9.37814536,2035.4,2034.5,5.90007961]
[1772476455591,9.19963551,2035.4,2034.5,0.001]
[1772476455769,6.07637571,2035.3,2034.5,0.001]
[1772476456087,7.30475621,2035.2,2034.5,0.001]
[1772476458586,1.9,2035.1,2034.5,0.001]
[1772476458782,1.899,2035.2,2034.5,5.91537847]
[1772476459102,3.12739902,2035.2,2034.5,5.91537847]
[1772476460208,1.899,2035.2,2034.5,5.91537847]
[1772476461286,1.899,2035.2,2034.6,1.22874275]
[1772476461881,1.899,2035.2,2034.6,7.14312122]
[1772476462380,3.12738362,2035.2,2034.6,7.14312122]
[1772476462785,5.96952245,2035.1,2034.5,0.001]
[1772476462999,3.12738362,2035.2,2034.5,1.22978108]
[1772476465087,3.12738362,2035.2,2034.7,0.001]
[1772476465290,0.002,2035.0,2034.7,0.001]
[1772476465484,1.22838362,2035.2,2034.7,5.91537847]
[1772476465813,1.898,2035.2,2034.7,5.91537847]
[1772476467183,3.12638102,2035.2,2034.7,7.14400401]
[1772476467384,1.898,2035.2,2034.7,7.14400401]
[1772476469416,0.002,2035.2,2034.7,7.14400401]
[1772476470602,0.002,2035.5,2034.8,5.91437847]
[1772476471432,0.002,2035.5,2035.0,5.91437847]
[1772476474024,0.002,2036.2,2035.2,5.91437847]
[1772476474189,0.002,2036.2,2035.4,5.91437847]
[1772476475035,0.002,2036.4,2035.4,5.91437847]
[1772476475193,1e-08,2036.7,2035.4,5.91437847]
[1772476475890,5.96952246,2036.7,2035.6,5.91437847]
[1772476476090,5.96952246,2036.7,2035.7,7.14245726]
[1772476476290,1e-08,2036.7,2035.7,7.14245726]
[1772476476707,1.2274759,2036.7,2035.7,7.14245726]
[1772476476897,1e-08,2036.7,2035.7,7.14245726]
[1772476478125,5.96952246,2036.7,2035.7,7.14245726]
[1772476478498,0.002,2036.5,2035.7,7.14245726]
[1772476479918,3.11021264,2036.8,2035.7,7.14245726]
[1772476479919,0.002,2036.8,2035.9,2.73115329]
[1772476480105,0.002,2037.0,2036.1,5.91437847]
[1772476480994,0.002,2037.0,2036.0,1.22789783]
[1772476480995,5.97152245,2037.0,2036.0,1.22789783]
[1772476481428,5.97152245,2037.0,2036.0,7.1422763]
[1772476482729,7.19887391,2037.0,2036.0,7.1422763]
[1772476483440,7.19887391,2037.0,2035.7,5.91437847]
[1772476483726,5.96952245,2036.7,2035.7,1.22803576]
[1772476483926,5.96952245,2036.7,2035.5,4.91274123]
[1772476484639,5.96952245,2036.5,2035.5,4.91274123]
[1772476484815,7.85152245,2036.4,2035.5,4.91274123]
[1772476485904,3.10853608,2036.6,2035.6,5.91437847]
[1772476486104,9.07805853,2036.6,2035.6,5.91437847]
[1772476486602,5.96952245,2036.5,2035.6,7.14247705]
[1772476490539,0.002,2036.3,2035.6,7.14247705]
[1772476491239,0.002,2036.5,2035.7,5.98446184]
[1772476491406,0.002,2036.5,2035.8,5.98446184]
[1772476492423,0.002,2036.5,2036.0,5.98446184]
[1772476493641,6.12104274,2036.5,2035.7,5.98446184]
[1772476494338,0.002,2036.5,2035.7,5.98446184]
[1772476494838,0.002,2036.5,2035.8,7.2124803]
[1772476496247,6.12104274,2036.5,2035.8,1.22801846]
[1772476497131,7.34669938,2036.4,2035.5,4.91275988]
[1772476498642,6.11904274,2036.4,2035.5,4.91275988]
[1772476499219,7.34674147,2036.4,2035.5,4.91275988]
[1772476499425,0.002,2036.5,2035.6,5.98446184]
[1772476499654,7.34864407,2036.5,2035.6,5.98446184]
[1772476500450,7.34864407,2036.5,2035.4,1.22822186]
[1772476500655,6.11904274,2036.2,2035.2,1.22934371]
[1772476500857,6.11904274,2036.0,2035.2,1.22934371]
[1772476501559,7.34700089,2035.9,2035.2,0.001]
[1772476501852,6.11904274,2035.9,2035.2,0.001]
[1772476502438,6.11904274,2035.9,2035.7,0.001]
[1772476503239,6.11904274,2035.7,2035.2,0.001]
[1772476503574,6.11904274,2035.7,2035.2,0.002]
[1772476503575,3.09919202,2035.6,2035.2,0.002]
[1772476504089,9.21823476,2035.6,2035.2,0.002]
[1772476504366,7.34712469,2035.7,2035.0,3.2356472]
[1772476504868,7.34712469,2035.7,2035.0,2.00715107]
[1772476506136,7.34712469,2035.7,2035.0,3.23565046]
[1772476507534,9.22320273,2035.6,2035.0,3.23565046]
[1772476508343,7.99504274,2035.6,2035.0,3.23565046]
[1772476508539,1.876,2035.7,2035.0,9.2201123]
[1772476508760,7.99504274,2035.7,2035.0,9.2201123]
[1772476509064,7.99504274,2035.7,2035.0,3.23565046]
[1772476509430,7.99604274,2035.7,2035.0,3.23565046]
[1772476509952,6.11904274,2035.6,2035.0,2.00715107]
[1772476510165,2.41155499,2035.5,2034.7,0.001]
[1772476510470,6.11904274,2035.0,2034.5,0.001]
[1772476510632,1.878,2034.9,2034.5,0.001]
[1772476510962,1.878,2034.8,2034.5,0.001]
[1772476512247,1.22844086,2035.1,2034.5,0.001]
[1772476512448,3.10644086,2035.1,2034.5,0.001]
[1772476513337,9.2254836,2035.1,2034.5,0.001]
[1772476514165,6.11904274,2035.0,2034.5,0.001]
[1772476514356,1.2285616,2034.9,2034.5,0.001]
[1772476515254,1.2285616,2034.9,2034.7,0.001]
[1772476516037,7.54193364,2034.9,2034.5,0.001]
[1772476516851,6.31337204,2034.4,2033.5,0.001]
[1772476517057,1.882,2034.3,2033.8,1.23018183]
[1772476517268,1.883,2034.2,2033.8,0.001]
[1772476519070,1.22904478,2034.1,2033.8,0.001]
[1772476520259,3.11203336,2034.2,2033.8,0.001]
[1772476521868,1.22886354,2034.4,2033.8,0.001]
[1772476522177,1.884,2034.3,2033.8,0.001]
[1772476522346,1.22866411,2034.8,2033.8,6.09160092]
[1772476522534,1.884,2034.7,2033.8,6.09160092]
[1772476522735,1.22859543,2034.9,2033.8,6.09160092]
[1772476522958,1.884,2034.8,2033.8,6.09160092]
[1772476523483,8.32491831,2034.8,2033.8,6.09160092]
[1772476523681,6.44091831,2034.7,2033.8,6.09160092]
[1772476524759,1.22874275,2034.6,2033.9,1.22916564]
[1772476525673,7.66966106,2034.6,2033.9,1.22916564]
[1772476526176,7.66966106,2034.6,2033.9,7.31976656]
[1772476526690,1.885,2034.5,2033.9,7.31976656]
[1772476526847,1.22886354,2034.4,2033.9,7.31976656]
[1772476527353,1.22886354,2034.4,2033.8,1.23021559]
[1772476527859,7.66978185,2034.4,2033.8,1.23021559]
[1772476528260,7.66978185,2034.4,2034.0,0.001]
[1772476528578,7.67178185,2034.4,2034.0,0.001]
[1772476529675,1.888,2034.3,2034.0,0.001]
[1772476531275,0.002,2034.6,2034.1,6.09060092]
[1772476531484,1.89,2034.8,2034.1,6.09060092]
[1772476533368,1.89,2034.8,2034.1,1.22899784]
[1772476533369,9.55954368,2034.8,2034.1,1.22899784]
[1772476533681,9.55954368,2034.8,2034.0,0.001]
[1772476533682,6.44091831,2034.7,2034.0,1.23010118]
[1772476534179,6.44091831,2034.6,2034.0,0.001]
[1772476535573,1.22880314,2034.5,2034.0,0.001]
[1772476535879,1.891,2034.4,2034.0,0.001]
[1772476538255,3.11988861,2034.4,2034.0,0.001]
[1772476539070,9.73675661,2035.2,2034.0,6.09160092]
[1772476539071,1.22862197,2034.8,2034.0,6.09160092]
[1772476540476,4.91637267,2034.9,2034.2,0.001]
[1772476540676,0.002,2034.6,2034.2,6.09160092]
[1772476542697,6.44291831,2034.6,2034.2,0.001]
[1772476543384,1.895,2034.5,2034.0,0.001]
[1772476543583,6.44091831,2034.4,2034.0,0.001]
[1772476547198,1.22890359,2034.4,2034.0,0.001]
[1772476547400,0.002,2034.8,2034.2,6.0042035]
[1772476548397,0.002,2034.7,2034.2,6.0042035]
[1772476548603,1.898,2034.7,2034.0,0.001]
[1772476548803,0.002,2034.6,2034.0,0.001]
[1772476549407,1.23074275,2034.6,2034.0,1.23010521]
[1772476549609,0.002,2034.6,2034.0,7.23430871]
[1772476549808,1.23062401,2034.8,2034.0,7.23430871]
[1772476550019,0.002,2034.7,2034.0,7.23430871]
[1772476550398,0.002,2034.7,2034.2,6.0042035]
[1772476551534,0.002,2034.9,2034.4,6.0042035]
[1772476552037,1.23056632,2034.9,2034.4,6.0042035]
[1772476552432,7.55311817,2034.9,2034.3,1.22892395]
[1772476554045,7.55311817,2034.9,2034.4,0.001]
[1772476554355,0.002,2034.7,2034.4,0.001]
[1772476555864,0.002,2034.9,2034.5,6.0042035]
[1772476556063,0.002,2034.9,2034.6,1.22874275]
[1772476557048,1.22823508,2035.5,2034.7,6.0042035]
[1772476557865,1.22817914,2035.6,2034.7,6.0042035]
[1772476558036,1.22817914,2035.6,2034.8,1.22862197]
[1772476558243,1.22817914,2035.6,2034.9,6.0042035]
[1772476558244,1.896,2035.6,2034.9,6.0042035]
[1772476558842,1.23012742,2035.7,2034.9,6.0042035]
[1772476559039,3.12612742,2035.7,2034.9,6.0042035]
[1772476560360,3.12612742,2035.7,2035.0,7.23270472]
[1772476560663,1.23012742,2035.7,2035.0,7.23270472]
[1772476560892,0.002,2035.9,2035.0,1.22850122]
[1772476561040,1.898,2036.2,2035.2,6.0042035]
[1772476561467,3.12577807,2036.2,2035.2,6.0042035]
[1772476561644,1.898,2036.2,2035.2,6.0042035]
[1772476562049,3.12578121,2036.2,2035.2,6.0042035]
[1772476562274,3.12578638,2036.2,2035.4,6.0042035]
[1772476562441,0.002,2036.2,2035.4,6.0042035]
[1772476563079,1.2297872,2036.2,2035.4,6.0042035]
[1772476563676,0.002,2036.2,2035.4,6.0042035]
[1772476563876,1.22978527,2036.2,2035.4,6.0042035]
[1772476564078,7.55232811,2036.2,2035.4,6.0042035]
[1772476565901,7.55232811,2036.2,2035.5,1.22819945]
[1772476566361,7.55232811,2036.2,2034.8,7.23282547]
[1772476566564,7.55232811,2036.2,2035.0,6.0042035]
[1772476567490,6.32254284,2036.0,2034.9,6.0042035]
[1772476567689,7.55050099,2035.9,2035.2,0.001]
[1772476568670,3.12493712,2036.0,2035.3,6.0042035]
[1772476570880,3.12493712,2036.0,2035.4,6.0042035]
[1772476571186,3.12493712,2036.0,2035.3,1.22827153]
[1772476571386,3.12493712,2036.0,2035.3,7.23247503]
[1772476572082,6.32254284,2035.9,2035.2,1.2293747]
[1772476572280,0.002,2036.0,2035.2,7.2335782]
[1772476572821,0.002,2036.2,2035.2,7.2335782]
[1772476573140,0.002,2036.5,2035.3,6.0042035]
[1772476573588,6.32454284,2037.0,2035.3,6.0697395]
[1772476573589,0.002,2037.0,2035.3,6.0697395]
[1772476574397,0.002,2037.0,2035.5,6.0042035]
[1772476574597,1.346,2036.9,2035.7,6.0042035]
[1772476575127,1.22941555,2036.8,2035.9,6.0042035]
[1772476577010,1.22941555,2036.8,2036.1,6.31459739]
[1772476577938,0.002,2036.8,2036.1,6.31459739]
[1772476578109,0.002,2036.8,2036.2,6.13454276]
[1772476578435,0.002,2036.8,2036.0,1.22789783]
[1772476578620,0.002,2036.8,2036.0,7.36244059]
[1772476580298,0.002,2036.4,2036.0,7.36244059]
[1772476581107,0.002,2036.4,2035.9,4.91159135]
[1772476581800,6.11470431,2036.3,2035.7,1.22807667]
[1772476582206,0.002,2036.4,2035.7,7.36261943]
[1772476583903,0.002,2036.6,2035.8,6.13454276]
[1772476584926,0.002,2036.8,2035.8,6.13454276]
[1772476585329,0.002,2037.0,2036.4,6.13454276]
[1772476585515,0.002,2037.1,2036.5,6.13454276]
[1772476585716,0.35589432,2037.2,2036.5,6.13454276]
[1772476586831,7.69777589,2037.2,2036.2,6.20007876]
[1772476587126,6.11470431,2037.1,2036.0,7.78254276]
[1772476587320,7.34199935,2037.0,2036.1,1.22783753]
[1772476589217,9.22599935,2037.0,2036.1,1.22783753]
[1772476589730,7.34199935,2037.0,2036.1,7.36238029]
[1772476592507,7.34199935,2037.0,2036.1,1.22783753]
[1772476592916,7.34199935,2037.0,2036.3,0.001]
[1772476593232,0.002,2036.8,2036.3,6.13554276]
[1772476593622,0.002,2036.8,2036.4,1.22765664]
[1772476594712,0.002,2036.8,2036.3,0.001]
[1772476594913,0.002,2036.8,2036.3,1.22871327]
[1772476595629,1.22941555,2036.8,2036.3,0.001]
[1772476595835,0.002,2036.8,2036.3,0.001]
[1772476596134,0.002,2036.8,2036.3,6.13554276]
[1772476596636,0.002,2037.0,2036.3,6.13554276]
[1772476597535,1.22931527,2037.0,2036.3,6.13554276]
[1772476597834,6.11670431,2037.0,2036.3,1.22867549]
[1772476598135,6.11670431,2037.0,2036.3,1.22871543]
[1772476599205,0.002,2037.0,2036.3,7.36325819]
[1772476599729,6.11670431,2037.0,2036.3,7.36325819]
[1772476600529,6.11670431,2037.0,2036.3,1.22871543]
[1772476602024,6.11470431,2036.8,2036.3,0.001]
[1772476602224,6.11470431,2036.6,2036.0,0.001]
[1772476604328,1.22759636,2036.5,2036.0,0.001]
[1772476604635,7.34230067,2036.5,2036.0,0.001]
[1772476605541,1.22759636,2036.5,2036.0,0.001]
[1772476605722,3.10952421,2036.7,2036.0,6.13554276]
[1772476606123,3.10952421,2036.7,2036.3,0.001]
[1772476606536,9.22422852,2036.7,2036.3,0.001]
[1772476607445,6.10771078,2036.6,2036.0,0.001]
[1772476607841,6.10771078,2036.6,2036.0,1.22889285]
[1772476608043,6.10771078,2036.6,2036.0,7.46169391]
[1772476608044,1.888,2036.6,2036.0,7.46169391]
[1772476608341,1.888,2036.6,2036.2,0.7]
[1772476608544,1.22750121,2036.7,2036.2,0.7]
[1772476608916,3.11546391,2036.8,2036.2,6.93280106]
[1772476609117,3.11542136,2036.8,2036.2,6.93280106]
[1772476610430,3.11542136,2036.8,2036.2,8.16056536]
[1772476611648,1.22742136,2036.8,2036.2,8.16056536]
[1772476611855,1.891,2036.8,2036.3,6.23280106]
[1772476612452,3.11841748,2036.8,2036.4,1.22765664]
[1772476612642,1.891,2036.8,2036.4,1.22765664]
[1772476613162,0.002,2037.1,2036.5,6.23280106]
[1772476613340,3.11803709,2037.5,2036.5,6.23280106]
[1772476613541,0.33944547,2037.6,2037.0,6.23280106]
[1772476614648,0.33944547,2037.6,2037.2,6.23280106]
[1772476615223,1.22657246,2038.2,2037.2,6.23280106]
[1772476615430,1.89,2038.2,2037.4,6.23280106]
[1772476615653,7.33413547,2038.5,2037.4,6.23280106]
[1772476616029,7.33413547,2038.5,2037.4,7.88680106]
[1772476616635,7.33413547,2038.5,2037.6,1.22693364]
[1772476618848,0.002,2038.0,2037.6,1.22693364]
[1772476620456,0.002,2038.0,2037.6,7.4597347]
[1772476621031,6.10771078,2037.9,2037.1,7.46003585]
[1772476621558,1.89,2038.0,2037.1,7.46003585]
[1772476622540,6.10771078,2037.9,2037.1,1.22723479]
[1772476622742,6.10771078,2037.9,2036.8,12.79774023]
[1772476622743,6.10771078,2037.7,2036.9,1.22735529]
[1772476622942,6.10771078,2037.7,2036.9,7.46015635]
[1772476624262,6.10771078,2037.6,2036.6,7.46029185]
[1772476624567,6.10771078,2037.6,2036.5,1.22756585]
[1772476624568,6.10771078,2037.4,2036.5,1.22756585]
[1772476624757,6.10771078,2037.4,2036.0,6.56920019]
[1772476624758,6.10771078,2037.2,2036.2,1.22873086]
[1772476625463,1.22711431,2037.3,2036.2,10.10912814]
[1772476625645,1.887,2037.1,2036.3,6.23280106]
[1772476625849,6.10771078,2037.0,2036.2,1.22873086]
[1772476626049,6.10771078,2036.9,2036.2,0.001]
[1772476626239,6.10771078,2036.9,2036.0,1.22888882]
[1772476626752,9.22112633,2036.8,2036.0,0.001]
[1772476626948,7.33499174,2037.1,2036.0,6.23380106]
[1772476628878,7.33499174,2037.1,2036.1,7.46063859]
[1772476629373,1.22728096,2037.1,2036.1,7.46063859]
[1772476629580,1.887,2037.0,2036.3,0.7]
[1772476631470,1.22735529,2036.9,2036.4,1.22765664]
[1772476632765,1.22735529,2036.9,2036.3,1.927668]
[1772476633870,1.22735529,2036.9,2036.3,0.7]
[1772476634055,1.22735529,2036.9,2036.3,1.92770371]
[1772476634250,7.33506607,2036.9,2036.3,0.7]
[1772476636490,6.2184607,2036.8,2036.2,0.001]
[1772476639878,7.47956486,2036.7,2036.2,0.001]
[1772476640080,6.25208905,2036.5,2036.2,0.001]
[1772476642177,1.22765664,2036.4,2036.2,0.001]
[1772476642553,3.12359636,2036.7,2036.2,0.001]
[1772476643376,3.12359636,2036.7,2036.4,0.001]
[1772476643754,0.002,2036.6,2036.4,0.001]
[1772476646086,11.05090982,2036.6,2036.2,0.001]
[1772476646385,17.30099887,2036.5,2036.2,0.001]
[1772476646580,1.904,2036.4,2036.2,0.001]
[1772476647580,1.22954253,2036.6,2036.2,5.91628275]
[1772476647766,1.22954253,2036.6,2036.2,0.001]
[1772476648693,8.0,2036.5,2036.2,0.001]
[1772476649489,0.002,2037.5,2036.5,5.91528275]
[1772476649786,0.002,2037.7,2036.6,5.91528275]
[1772476649787,0.797,2037.7,2036.6,5.91528275]
[1772476650002,7.56989674,2037.7,2036.6,5.91528275]
[1772476650306,6.25208905,2037.5,2036.6,5.91528275]
[1772476651095,0.797,2037.7,2036.6,5.91528275]
[1772476651096,6.77289674,2037.4,2036.6,5.91528275]
[1772476651294,1.909,2037.3,2036.6,5.91528275]
[1772476651497,1.909,2037.4,2036.7,1.22747581]
[1772476651800,1.909,2037.4,2036.8,5.91528275]
[1772476652160,6.77289674,2037.3,2036.8,5.91528275]
[1772476653589,6.77289674,2037.3,2036.9,1.22735529]
[1772476654593,6.77289674,2037.3,2036.8,7.14265687]
[1772476654913,6.77289674,2037.2,2036.7,7.14271209]
[1772476655403,6.77289674,2037.1,2036.7,7.14271209]
[1772476655587,1.91,2037.0,2036.7,7.14271209]
[1772476656175,1.91,2037.1,2036.7,7.14271209]
[1772476656398,1.22891261,2037.7,2036.7,7.14271209]
[1772476656561,0.002,2037.7,2036.7,2.88342934]
[1772476656765,0.795,2037.9,2036.8,5.91528275]
[1772476657780,0.002,2038.0,2037.0,5.91528275]
[1772476657980,1.911,2038.0,2037.0,5.91628275]
[1772476658184,0.002,2037.5,2037.0,5.91628275]